bitfinex-derivatives/quotes_BTCF0:USTF0_20210705
["timestamp","ask_amount","ask_price","bid_price","bid_amount"]
[1625484015161,0.004,34190.0,34189.0,0.35857544]
[1625484015564,0.004,34190.0,34189.0,0.29957544]
[1625484015713,0.004,34190.0,34189.0,0.35857544]
[1625484015912,0.004,34190.0,34189.0,0.29957544]
[1625484016012,0.004,34190.0,34189.0,0.35857544]
[1625484017318,0.48115088,34191.0,34189.0,0.35857544]
[1625484019223,0.48115088,34191.0,34189.0,0.29957544]
[1625484021525,0.48115088,34191.0,34189.0,0.24057544]
[1625484022276,0.48115088,34191.0,34189.0,0.29957544]
[1625484025937,0.48115088,34191.0,34190.0,0.00406347]
[1625484026036,0.48115088,34191.0,34190.0,0.06306347]
[1625484029697,0.49631273,34191.0,34190.0,0.06306347]
[1625484030647,1.13278767,34191.0,34190.0,0.06306347]
[1625484033098,2.08749317,34191.0,34190.0,0.06306347]
[1625484034456,1.13278767,34191.0,34190.0,0.06306347]
[1625484035308,2.08834335,34191.0,34190.0,0.06306347]
[1625484036310,2.08834335,34191.0,34190.0,0.32403347]
[1625484037513,1.13278767,34191.0,34190.0,0.32403347]
[1625484038966,2.08836009,34191.0,34190.0,0.32403347]
[1625484039416,1.13278767,34191.0,34190.0,0.32403347]
[1625484041625,2.08880873,34191.0,34190.0,0.32403347]
[1625484046084,1.84823329,34191.0,34190.0,0.32403347]
[1625484050793,1.84823329,34191.0,34190.0,0.06306347]
[1625484052602,2.96515445,34191.0,34190.0,0.06306347]
[1625484054503,3.28093445,34191.0,34190.0,0.06306347]
[1625484055203,7.79383445,34191.0,34190.0,0.06306347]
[1625484056109,9.07366359,34191.0,34190.0,0.06306347]
[1625484058113,9.07366359,34191.0,34190.0,0.75637282]
[1625484060515,9.55427288,34191.0,34190.0,1.27635675]
[1625484062618,9.55427288,34191.0,34190.0,2.31657604]
[1625484062867,9.53911103,34191.0,34190.0,2.31251257]
[1625484063167,9.55427995,34191.0,34190.0,2.31657681]
[1625484063267,5.04137995,34191.0,34190.0,2.31657681]
[1625484063368,5.04137995,34191.0,34190.0,1.27635752]
[1625484063568,4.80080451,34191.0,34190.0,1.27635752]
[1625484064419,5.04137995,34191.0,34190.0,2.55739438]
[1625484073089,3.76155081,34191.0,34190.0,2.55739438]
[1625484073189,3.44577081,34191.0,34190.0,2.55739438]
[1625484073590,3.43060189,34191.0,34190.0,2.55739438]
[1625484073691,2.31368073,34191.0,34190.0,3.7711313]
[1625484074144,2.31368073,34191.0,34190.0,5.15824887]
[1625484074243,2.07310529,34191.0,34190.0,5.15824887]
[1625484075395,2.07310529,34191.0,34190.0,3.7711313]
[1625484076247,3.19217667,34191.0,34190.0,3.7711313]
[1625484076748,2.07310529,34191.0,34190.0,3.7711313]
[1625484078803,1.11708423,34191.0,34190.0,3.7711313]
[1625484078903,1.11708423,34191.0,34190.0,5.15766859]
[1625484079303,1.11708423,34191.0,34190.0,3.7711313]
[1625484079304,2.07640747,34191.0,34190.0,3.7711313]
[1625484079853,3.19442629,34191.0,34190.0,2.55739438]
[1625484080204,6.73702629,34191.0,34190.0,2.55739438]
[1625484080704,6.97760173,34191.0,34190.0,2.55739438]
[1625484081609,6.99276741,34191.0,34190.0,2.55739438]
[1625484082069,6.99276741,34191.0,34190.0,1.51693296]
[1625484082070,8.2699703,34191.0,34190.0,1.51693296]
[1625484084019,8.25480462,34191.0,34190.0,1.51693296]
[1625484084370,5.85958291,34191.0,34190.0,2.55659875]
[1625484084720,5.85958291,34191.0,34190.0,3.7694689]
[1625484085071,5.85958291,34191.0,34190.0,2.55659875]
[1625484086025,5.85958291,34191.0,34190.0,3.76948126]
[1625484086323,5.85958291,34191.0,34190.0,2.55659875]
[1625484086926,5.8747484,34191.0,34190.0,2.55659875]
[1625484087431,6.9922503,34191.0,34190.0,1.51693296]
[1625484087929,8.2691761,34191.0,34190.0,1.51693296]
[1625484088382,8.2691761,34191.0,34190.0,0.82362361]
[1625484088483,8.4836161,34191.0,34190.0,0.82362361]
[1625484089082,4.9410161,34191.0,34190.0,0.82362361]
[1625484089733,4.7265761,34191.0,34190.0,0.82362361]
[1625484092809,4.9596561,34191.0,34190.0,0.82362361]
[1625484092903,4.9596561,34191.0,34189.0,2.14e-06]
[1625484093007,4.9596561,34191.0,34189.0,0.05900214]
[1625484093095,4.9596561,34191.0,34189.0,2.14e-06]
[1625484093314,3.34483345,34190.0,34189.0,0.08663508]
[1625484093393,3.36001474,34190.0,34189.0,0.09069582]
[1625484093492,3.41901474,34190.0,34189.0,0.09069582]
[1625484093996,3.41901474,34190.0,34189.0,0.00406074]
[1625484094745,3.65959018,34190.0,34189.0,0.00406074]
[1625484094893,3.65959018,34190.0,34188.0,0.00408004]
[1625484094996,3.554,34189.0,34188.0,0.00408004]
[1625484095096,3.613,34189.0,34188.0,0.00408004]
[1625484095196,3.62811321,34189.0,34188.0,0.00408004]
[1625484095345,3.62811321,34189.0,34182.0,0.2974384]
[1625484095448,6.96916548,34189.0,34182.0,0.2974384]
[1625484095553,7.02816548,34189.0,34182.0,0.2974384]
[1625484095746,0.01512616,34188.0,34183.0,0.004076]
[1625484095847,0.13312616,34188.0,34183.0,0.004076]
[1625484096045,0.13312616,34188.0,34182.0,0.2974384]
[1625484096246,1.26987784,34183.0,34177.0,1.55925898]
[1625484096346,1.54808784,34183.0,34175.0,1.38518318]
[1625484096696,1.54808784,34183.0,34174.0,2.37265559]
[1625484096797,0.72172632,34182.0,34174.0,2.37265559]
[1625484097097,0.72172632,34182.0,34181.0,0.01207629]
[1625484097197,0.78072632,34182.0,34181.0,0.01207629]
[1625484097303,2.05091934,34182.0,34181.0,0.01207629]
[1625484097505,2.10991934,34182.0,34181.0,0.01207629]
[1625484097607,2.10991934,34182.0,34181.0,0.008]
[1625484097749,2.10991934,34182.0,34174.0,1.38515559]
[1625484097950,2.10991934,34182.0,34173.0,1.38519883]
[1625484098050,2.10991934,34182.0,34173.0,1.44419883]
[1625484098150,2.10991934,34182.0,34175.0,0.0040766]
[1625484098452,2.10991934,34182.0,34174.0,0.00407666]
[1625484098702,1.26870191,34181.0,34174.0,0.00407666]
[1625484098801,0.72172632,34175.0,34174.0,0.00407666]
[1625484098901,4.83512632,34175.0,34174.0,0.00407666]
[1625484099201,4.83512632,34175.0,34171.0,1.38432401]
[1625484099202,4.83512632,34175.0,34172.0,0.00407709]
[1625484099301,4.89412632,34175.0,34172.0,0.00407709]
[1625484099501,4.89412632,34175.0,34171.0,1.38432401]
[1625484099704,4.89412632,34175.0,34172.0,0.00407717]
[1625484100057,4.89412632,34175.0,34166.0,1.38440255]
[1625484100154,5.01012632,34175.0,34166.0,1.38440255]
[1625484100807,0.72172632,34167.0,34166.0,1.38440255]
[1625484100907,0.94959632,34167.0,34166.0,1.38440255]
[1625484101107,0.94959632,34167.0,34166.0,1.38848004]
[1625484101458,0.94959632,34167.0,34166.0,0.00407749]
[1625484101660,0.94959632,34167.0,34162.0,2.34974061]
[1625484102208,0.94959632,34167.0,34162.0,0.9669]
[1625484102807,0.24057544,34163.0,34162.0,0.9669]
[1625484103008,0.24057544,34163.0,34160.0,1.3829316]
[1625484103208,0.24057544,34163.0,34160.0,1.4419316]
[1625484104217,0.24057544,34163.0,34160.0,0.059]
[1625484104866,0.48115088,34161.0,34160.0,0.059]
[1625484105166,0.48115088,34161.0,34160.0,0.0001]
[1625484105366,0.48115088,34161.0,34157.0,1.38087902]
[1625484105466,3.5241,34158.0,34157.0,1.38087902]
[1625484105583,3.83438,34158.0,34157.0,1.38087902]
[1625484105666,3.89338,34158.0,34157.0,1.38087902]
[1625484105867,3.89338,34158.0,34153.0,1.38104494]
[1625484106066,3.89338,34158.0,34153.0,1.44004494]
[1625484106319,3.89338,34158.0,34153.0,0.059]
[1625484106818,0.48115088,34154.0,34153.0,0.059]
[1625484106921,0.54015088,34154.0,34153.0,0.059]
[1625484107220,0.48115088,34154.0,34153.0,0.059]
[1625484107320,0.54015088,34154.0,34153.0,0.059]
[1625484107972,0.54015088,34154.0,34150.0,1.37894131]
[1625484108073,0.54015088,34154.0,34149.0,1.61803003]
[1625484108272,0.54015088,34154.0,34149.0,1.67703003]
[1625484108673,0.54015088,34154.0,34149.0,0.29957544]
[1625484108875,0.24057544,34150.0,34149.0,0.29957544]
[1625484108975,0.50850544,34150.0,34149.0,0.29957544]
[1625484109375,0.50850544,34150.0,34149.0,0.24057544]
[1625484109775,0.50850544,34150.0,34149.0,0.29957544]
[1625484113091,0.50850544,34150.0,34149.0,0.24057544]
[1625484113240,0.50850544,34150.0,34149.0,0.29957544]
[1625484113991,0.29957544,34150.0,34149.0,0.29957544]
[1625484115496,0.29957544,34150.0,34149.0,0.24057544]
[1625484115609,0.51106544,34150.0,34149.0,0.24057544]
[1625484116245,0.51106544,34150.0,34146.0,2.13078774]
[1625484116348,0.51106544,34150.0,34146.0,0.9288]
[1625484116959,0.24057544,34147.0,34146.0,0.9288]
[1625484117651,0.24057544,34147.0,34145.0,0.24057544]
[1625484118651,0.52552544,34147.0,34145.0,0.24057544]
[1625484118902,0.76610088,34147.0,34145.0,0.24057544]
[1625484119303,0.82510088,34147.0,34145.0,0.24057544]
[1625484123172,0.82510088,34147.0,34140.0,0.24057544]
[1625484123265,0.82510088,34147.0,34136.0,1.19968195]
[1625484123360,0.88410088,34147.0,34137.0,0.059]
[1625484123660,0.88410088,34147.0,34131.0,1.19958904]
[1625484123760,4.4572,34133.0,34131.0,1.25858904]
[1625484123863,4.73443,34133.0,34131.0,1.19958904]
[1625484124360,4.79343,34133.0,34131.0,1.19958904]
[1625484124760,4.79343,34133.0,34125.0,1.1997401]
[1625484124860,4.79343,34133.0,34125.0,1.2587401]
[1625484124961,0.96230176,34126.0,34125.0,1.2587401]
[1625484125060,1.17782176,34126.0,34125.0,1.2587401]
[1625484125363,1.17782176,34126.0,34125.0,0.059]
[1625484125513,1.17782176,34126.0,34117.0,1.1988059]
[1625484125610,1.17782176,34126.0,34117.0,1.2578059]
[1625484125711,1.17782176,34126.0,34119.0,1.02755857]
[1625484125810,1.17782176,34126.0,34119.0,1.08655857]
[1625484125911,1.17782176,34126.0,34119.0,1.14555857]
[1625484126010,1.17782176,34126.0,34120.0,0.00409121]
[1625484126313,1.17782176,34126.0,34120.0,0.06309121]
[1625484126413,1.17782176,34126.0,34120.0,0.12209121]
[1625484126512,1.17782176,34126.0,34121.0,0.00409129]
[1625484126811,1.17782176,34126.0,34121.0,0.06309129]
[1625484127013,0.24057544,34122.0,34121.0,0.06309129]
[1625484127111,0.24057544,34122.0,34121.0,0.059]
[1625484127612,0.24057544,34122.0,34121.0,0.06309197]
[1625484127915,0.24057544,34122.0,34121.0,0.059]
[1625484128613,0.29957544,34122.0,34121.0,0.059]
[1625484131688,0.29957544,34122.0,34113.0,0.24057544]
[1625484131778,0.29957544,34122.0,34121.0,0.059]
[1625484131872,0.29957544,34122.0,34109.0,0.24057544]
[1625484131986,0.29957544,34122.0,34109.0,0.29957544]
[1625484131987,0.35857544,34122.0,34109.0,0.29957544]
[1625484132375,0.35857544,34122.0,34107.0,0.938]
[1625484133072,0.48115088,34108.0,34107.0,0.938]
[1625484133173,0.69369088,34108.0,34107.0,0.938]
[1625484133375,0.69369088,34108.0,34099.0,1.02294214]
[1625484133580,0.69369088,34108.0,34100.0,0.118]
[1625484133781,5.40479088,34108.0,34100.0,0.118]
[1625484134181,5.40479088,34108.0,34101.0,0.00408954]
[1625484134284,5.40479088,34108.0,34101.0,0.12208954]
[1625484134380,5.40479088,34108.0,34101.0,0.118]
[1625484135081,0.48115088,34102.0,34101.0,0.118]
[1625484137435,0.48115088,34102.0,34101.0,0.059]
[1625484139247,0.48115088,34102.0,34101.0,0.118]
[1625484139345,0.48115088,34102.0,34101.0,0.059]
[1625484139499,0.48115088,34102.0,34092.0,0.05]
[1625484139596,0.48115088,34102.0,34092.0,0.109]
[1625484139698,0.48115088,34102.0,34092.0,0.168]
[1625484141105,0.24057544,34093.0,34092.0,0.168]
[1625484143801,0.24057544,34093.0,34092.0,0.17209094]
[1625484144801,0.57587544,34093.0,34092.0,0.17209094]
[1625484145653,0.24057544,34102.0,34092.0,0.17209094]
[1625484145955,0.24057544,34102.0,34093.0,0.00409057]
[1625484146054,0.24057544,34102.0,34093.0,0.12209057]
[1625484146356,0.004,34095.0,34093.0,0.12209057]
[1625484146554,0.004,34095.0,34094.0,0.06309071]
[1625484146655,0.004,34095.0,34094.0,0.12209071]
[1625484146905,0.006,34097.0,34094.0,0.12209071]
[1625484147004,0.006,34097.0,34094.0,0.62209071]
[1625484147104,0.006,34097.0,34096.0,0.48115088]
[1625484147205,0.006,34097.0,34096.0,0.59915088]
[1625484147507,0.006,34097.0,34096.0,1.09915088]
[1625484147607,0.006,34097.0,34096.0,1.10324154]
[1625484147859,0.006,34097.0,34096.0,0.60324154]
[1625484148411,0.006,34097.0,34096.0,1.10324154]
[1625484149162,0.01,34101.0,34096.0,1.34381698]
[1625484149264,0.24057544,34116.0,34096.0,1.34381698]
[1625484149367,4.4572,34133.0,34096.0,1.34381698]
[1625484149485,4.5162,34133.0,34097.0,0.00408998]
[1625484149566,4.5752,34133.0,34097.0,0.06308998]
[1625484149664,4.5752,34133.0,34097.0,0.12208998]
[1625484149764,4.5752,34133.0,34098.0,0.5]
[1625484149864,4.5752,34133.0,34098.0,0.618]
[1625484150066,4.5752,34133.0,34099.0,0.00408304]
[1625484150164,4.5752,34133.0,34099.0,0.27981304]
[1625484150316,0.057,34132.0,34100.0,0.5]
[1625484150417,0.116,34132.0,34100.0,0.559]
[1625484150515,0.175,34132.0,34101.0,0.00408299]
[1625484150716,0.175,34132.0,34101.0,0.06308299]
[1625484150817,0.175,34132.0,34101.0,0.12208299]
[1625484150918,0.175,34132.0,34102.0,0.5]
[1625484151016,0.175,34132.0,34102.0,0.618]
[1625484151116,0.24057544,34130.0,34129.0,0.24057544]
[1625484151218,0.29957544,34130.0,34129.0,0.24057544]
[1625484151318,0.35857544,34130.0,34129.0,0.24057544]
[1625484153873,0.35857544,34130.0,34126.0,0.24057544]
[1625484155172,0.24057544,34127.0,34126.0,0.24057544]
[1625484155272,0.35857544,34127.0,34126.0,0.24057544]
[1625484156574,0.35857544,34127.0,34119.0,0.24057544]
[1625484157128,0.24057544,34120.0,34119.0,0.24057544]
[1625484157225,0.29957544,34120.0,34119.0,0.24057544]
[1625484157726,0.61541544,34120.0,34119.0,0.24466343]
[1625484158028,0.61541544,34120.0,34119.0,0.24057544]
[1625484158227,0.67441544,34120.0,34119.0,0.24057544]
[1625484158328,0.65641544,34120.0,34119.0,0.01]
[1625484159130,1.13756632,34120.0,34119.0,0.01]
[1625484160378,1.1526931,34120.0,34119.0,0.01]
[1625484160580,1.1526931,34120.0,34105.0,0.24057544]
[1625484160681,1.13756632,34120.0,34105.0,0.24057544]
[1625484160931,1.13756632,34120.0,34106.0,0.00408951]
[1625484161231,6.00182632,34107.0,34106.0,0.00408951]
[1625484161331,6.27744632,34107.0,34106.0,0.00408951]
[1625484161531,6.33644632,34107.0,34106.0,0.00408951]
[1625484165847,6.33644632,34107.0,34105.0,0.24057544]
[1625484166145,6.33644632,34107.0,34106.0,0.00408979]
[1625484166798,6.06082632,34107.0,34106.0,0.00408979]
[1625484175766,6.06082632,34107.0,34105.0,0.24057544]
[1625484176015,6.06082632,34107.0,34106.0,0.00409571]
[1625484180076,6.06082632,34107.0,34106.0,0.6942848]
[1625484180929,6.06082632,34107.0,34106.0,0.00409571]
[1625484183234,6.06082632,34107.0,34106.0,0.52177065]
[1625484184682,6.06082632,34107.0,34106.0,1.21275124]
[1625484186436,6.06082632,34107.0,34106.0,2.24986106]
[1625484188747,6.00182632,34107.0,34106.0,2.24986106]
[1625484190600,6.00182632,34107.0,34106.0,3.46118512]
[1625484194006,0.78072632,34107.0,34106.0,3.69417512]
[1625484194207,0.78072632,34107.0,34106.0,3.75317512]
[1625484194309,0.78072632,34107.0,34106.0,5.13805926]
[1625484194407,0.54015088,34107.0,34106.0,5.13805926]
[1625484194909,0.54015088,34107.0,34106.0,5.07905926]
[1625484195211,0.48115088,34107.0,34106.0,5.07905926]
[1625484195761,0.48115088,34107.0,34106.0,5.13805926]
[1625484195961,0.24057544,34107.0,34106.0,5.13805926]
[1625484196262,0.24057544,34107.0,34106.0,5.1467504]
[1625484196462,0.24057544,34107.0,34106.0,5.13805926]
[1625484197217,0.004,34110.0,34106.0,5.13805926]
[1625484197315,0.004,34110.0,34109.0,0.24057544]
[1625484197717,0.004,34110.0,34109.0,5.14710023]
[1625484197816,0.004,34110.0,34109.0,5.15120911]
[1625484199022,0.004,34110.0,34109.0,5.21020911]
[1625484199124,0.29757544,34118.0,34109.0,5.22077214]
[1625484199239,0.24057544,34118.0,34109.0,5.22077214]
[1625484199422,0.24057544,34118.0,34117.0,0.48115088]
[1625484199522,0.24057544,34118.0,34117.0,0.70437088]
[1625484199671,0.24057544,34118.0,34117.0,0.70847912]
[1625484199823,0.24057544,34118.0,34117.0,2.95876079]
[1625484200423,0.29957544,34118.0,34117.0,2.95876079]
[1625484201128,0.29957544,34118.0,34117.0,1.92016925]
[1625484203629,0.29957544,34118.0,34117.0,1.22777489]
[1625484204129,0.24057544,34118.0,34117.0,1.92007157]
[1625484204633,0.29957544,34118.0,34117.0,1.92007157]
[1625484204731,0.24057544,34118.0,34117.0,1.92007157]
[1625484204832,0.29957544,34118.0,34117.0,1.92007157]
[1625484204932,0.24057544,34118.0,34117.0,1.92007157]
[1625484205134,0.24057544,34118.0,34117.0,2.9584829]
[1625484205532,0.24057544,34118.0,34117.0,1.92007157]
[1625484206082,0.24057544,34118.0,34117.0,2.9583628]
[1625484207789,0.24057544,34118.0,34117.0,1.92007157]
[1625484208137,0.24057544,34118.0,34117.0,2.95829563]
[1625484208639,0.61360544,34118.0,34117.0,2.71772019]
[1625484208740,0.67260544,34118.0,34117.0,2.49039195]
[1625484209040,2.70670038,34118.0,34117.0,0.24057544]
[1625484210441,3.80181382,34118.0,34117.0,0.24057544]
[1625484210941,2.70670038,34118.0,34117.0,0.24057544]
[1625484211992,2.70670038,34118.0,34117.0,0.24468357]
[1625484212094,1.7679475,34118.0,34117.0,0.24468357]
[1625484212796,1.7679475,34118.0,34117.0,0.24057544]
[1625484213298,1.7679475,34118.0,34117.0,0.24467309]
[1625484214703,2.70851521,34118.0,34117.0,0.24467309]
[1625484215056,1.7679475,34118.0,34117.0,0.24467309]
[1625484215206,1.7679475,34118.0,34117.0,0.00409765]
[1625484215758,1.7679475,34118.0,34115.0,0.86616552]
[1625484216058,3.80399734,34118.0,34116.0,0.00409174]
[1625484216359,3.80399734,34118.0,34114.0,0.00409178]
[1625484216461,2.03776032,34117.0,34114.0,0.35071881]
[1625484216558,2.09676032,34117.0,34114.0,0.35071881]
[1625484216757,2.15576032,34117.0,34114.0,0.35071881]
[1625484216859,1.09722124,34115.0,34113.0,0.87057095]
[1625484217057,1.21522124,34115.0,34113.0,0.87057095]
[1625484217358,0.47025408,34114.0,34113.0,0.87057095]
[1625484217458,1.01040496,34114.0,34113.0,0.87057095]
[1625484217558,1.06940496,34114.0,34113.0,0.87057095]
[1625484217657,1.06940496,34114.0,34113.0,0.87466231]
[1625484219012,1.06940496,34114.0,34113.0,1.22131804]
[1625484219013,0.9128245,34114.0,34113.0,1.22131804]
[1625484221664,0.59915088,34114.0,34113.0,1.22131804]
[1625484222316,0.91282464,34114.0,34113.0,1.22131804]
[1625484222565,0.91282464,34114.0,34113.0,1.51618804]
[1625484223166,0.59915088,34114.0,34113.0,2.55612719]
[1625484223717,1.69625984,34114.0,34113.0,0.649628]
[1625484224766,1.06936282,34114.0,34113.0,0.82297165]
[1625484225467,1.69668757,34114.0,34113.0,1.16964127]
[1625484225921,1.06936282,34114.0,34113.0,1.51633949]
[1625484226269,0.91307387,34114.0,34113.0,1.51633949]
[1625484226925,1.69711959,34114.0,34113.0,0.64967725]
[1625484227222,1.69711959,34114.0,34113.0,0.64567725]
[1625484227522,1.69711959,34114.0,34113.0,0.35080725]
[1625484228173,1.69711959,34114.0,34113.0,0.87088672]
[1625484229580,2.63839775,34114.0,34113.0,0.35080725]
[1625484230286,2.63839775,34114.0,34113.0,0.00409136]
[1625484230287,0.59915088,34114.0,34113.0,0.00409136]
[1625484230684,0.59915088,34114.0,34112.0,0.00409369]
[1625484230887,2.6380579,34114.0,34112.0,0.00409369]
[1625484231233,2.5790579,34114.0,34112.0,0.00409369]
[1625484231485,1.09834093,34113.0,34112.0,0.87095994]
[1625484231583,1.15734093,34113.0,34112.0,0.87095994]
[1625484231684,1.21634093,34113.0,34112.0,0.87095994]
[1625484231887,1.21634093,34113.0,34112.0,0.86686625]
[1625484232085,1.21634093,34113.0,34112.0,0.87096]
[1625484232383,1.21634093,34113.0,34112.0,0.86686625]
[1625484232534,1.21634093,34113.0,34112.0,0.87095997]
[1625484232634,1.21634093,34113.0,34112.0,0.35084022]
[1625484233234,1.21634093,34113.0,34112.0,0.87094294]
[1625484234235,1.15734093,34113.0,34112.0,0.87094294]
[1625484234335,1.15734093,34113.0,34112.0,2.25787921]
[1625484234336,0.37358706,34113.0,34112.0,2.25787921]
[1625484234890,0.84535448,34113.0,34112.0,1.21766955]
[1625484235992,1.1594885,34113.0,34112.0,0.52419644]
[1625484237696,0.68772108,34113.0,34112.0,0.52419644]
[1625484237806,0.059,34113.0,34112.0,0.00409372]
[1625484238244,0.53076069,34113.0,34112.0,1.21775236]
[1625484238592,0.84531186,34113.0,34112.0,1.21775236]
[1625484239094,0.37355117,34113.0,34112.0,1.21775236]
[1625484239796,0.84534338,34113.0,34112.0,1.21775236]
[1625484240398,0.37355117,34113.0,34112.0,2.25800122]
[1625484240805,0.059,34113.0,34112.0,2.25800122]
[1625484241000,0.31812,34113.0,34112.0,2.25800122]
[1625484241400,1.41843397,34113.0,34112.0,0.87097599]
[1625484242004,2.36111178,34113.0,34112.0,0.00409372]
[1625484242407,2.36111178,34113.0,34112.0,0.35085362]
[1625484243006,1.10426502,34113.0,34112.0,1.21771106]
[1625484243773,2.36119575,34113.0,34112.0,0.35085143]
[1625484244261,2.36119575,34113.0,34112.0,0.00409372]
[1625484245365,2.42019575,34113.0,34112.0,0.00409372]
[1625484245471,3.51921612,34113.0,34111.0,0.00416437]
[1625484245664,0.24057544,34112.0,34111.0,0.00416437]
[1625484245769,0.29957544,34112.0,34111.0,0.00416437]
[1625484245864,0.35857544,34112.0,34111.0,0.00416437]
[1625484246062,0.35857544,34112.0,34110.0,0.34677277]
[1625484246266,0.35857544,34112.0,34108.0,1.04428215]
[1625484246267,4.74765043,34112.0,34108.0,0.004]
[1625484246362,0.0882,34111.0,34108.0,0.004]
[1625484246462,0.059,34111.0,34108.0,0.004]
[1625484246664,0.118,34111.0,34109.0,0.00416459]
[1625484246864,0.118,34111.0,34108.0,0.004]
[1625484246966,3.13425023,34109.0,34108.0,0.004]
[1625484247065,3.19325023,34109.0,34108.0,0.004]
[1625484247164,3.25225023,34109.0,34108.0,0.00816477]
[1625484247467,0.04483523,34105.0,34104.0,0.008]
[1625484247569,0.34534523,34105.0,34102.0,0.4596316]
[1625484247666,0.059,34104.0,34100.0,0.21348686]
[1625484247766,0.059,34102.0,34092.0,0.05]
[1625484247966,0.72172632,34103.0,34102.0,0.69346682]
[1625484248066,0.059,34102.0,34101.0,0.83406705]
[1625484248266,0.059,34102.0,34101.0,0.77506705]
[1625484248565,5.8272,34102.0,34101.0,0.77506705]
[1625484248666,5.8862,34102.0,34101.0,0.77506705]
[1625484248767,5.3862,34102.0,34101.0,0.77506705]
[1625484248867,10.53378232,34102.0,34098.0,1.38684213]
[1625484249217,2.80757534,34099.0,34098.0,1.38684213]
[1625484249318,2.92557534,34099.0,34098.0,1.16784213]
[1625484249421,2.92557534,34099.0,34098.0,0.96484213]
[1625484249538,2.86657534,34099.0,34098.0,0.93324213]
[1625484249661,3.36657534,34099.0,34098.0,0.93324213]
[1625484249741,4.50925107,34099.0,34085.0,2.59997292]
[1625484249879,0.059,34098.0,34085.0,2.59997292]
[1625484250055,0.118,34098.0,34085.0,2.59997292]
[1625484250422,0.059,34098.0,34085.0,2.08026319]
[1625484250523,1.55587092,34096.0,34085.0,2.08026319]
[1625484250725,1.61487092,34096.0,34085.0,2.08026319]
[1625484250925,1.67387092,34096.0,34085.0,2.08026319]
[1625484251728,0.48115088,34093.0,34088.0,0.24057544]
[1625484251829,0.59915088,34093.0,34088.0,0.24057544]
[1625484252027,0.59915088,34093.0,34092.0,0.0001]
[1625484252128,1.06510347,34093.0,34092.0,0.0001]
[1625484253431,1.00610347,34093.0,34092.0,0.0001]
[1625484253530,1.06510347,34093.0,34092.0,0.0001]
[1625484253932,0.59915088,34093.0,34092.0,0.0001]
[1625484254031,0.54015088,34093.0,34092.0,0.0001]
[1625484254132,0.59915088,34093.0,34092.0,0.0001]
[1625484254233,0.54015088,34093.0,34092.0,0.0001]
[1625484254331,0.59915088,34093.0,34088.0,0.24057544]
[1625484254887,0.46601497,34092.0,34088.0,0.24057544]
[1625484254983,0.81712497,34092.0,34088.0,0.24057544]
[1625484255086,0.87612497,34092.0,34088.0,0.24057544]
[1625484255486,0.46590945,34091.0,34088.0,0.24057544]
[1625484255687,0.52490945,34091.0,34088.0,0.24057544]
[1625484255785,0.24057544,34089.0,34088.0,0.24057544]
[1625484255886,0.29957544,34089.0,34088.0,0.24057544]
[1625484256186,0.29957544,34089.0,34078.0,2.42697372]
[1625484256287,0.35657544,34089.0,34078.0,2.42697372]
[1625484256637,1.44158308,34089.0,34078.0,2.42697372]
[1625484256736,0.46509183,34086.0,34078.0,2.42697372]
[1625484256938,0.52409183,34086.0,34078.0,2.42697372]
[1625484257037,0.58309183,34086.0,34078.0,2.42697372]
[1625484257692,0.118,34086.0,34078.0,2.42697372]
[1625484257789,0.72172632,34079.0,34078.0,2.42697372]
[1625484257889,1.05767632,34079.0,34078.0,2.42697372]
[1625484257988,1.11667632,34079.0,34078.0,2.42697372]
[1625484259292,1.11667632,34079.0,34072.0,0.9662]
[1625484259392,1.11667632,34079.0,34071.0,2.77368425]
[1625484259792,0.72172632,34072.0,34071.0,2.77368425]
[1625484259894,0.99913632,34072.0,34071.0,2.77368425]
[1625484259994,1.05813632,34072.0,34071.0,2.77368425]
[1625484260093,1.55813632,34072.0,34071.0,2.77368425]
[1625484260198,1.55813632,34072.0,34064.0,3.46710532]
[1625484260394,1.49913632,34072.0,34064.0,3.46710532]
[1625484260595,1.55813632,34072.0,34064.0,3.46710532]
[1625484260895,1.49913632,34072.0,34061.0,4.3301938]
[1625484261097,1.55813632,34072.0,34061.0,4.2434938]
[1625484261196,0.83641,34072.0,34057.0,4.16052638]
[1625484261396,0.0891,34071.0,34057.0,4.16052638]
[1625484261496,0.1481,34071.0,34054.0,4.50723691]
[1625484261597,0.5,34070.0,34054.0,4.50723691]
[1625484261739,0.616,34070.0,34052.0,0.51647334]
[1625484261797,0.96230176,34053.0,34052.0,0.47477334]
[1625484261917,0.96230176,34053.0,34020.0,8.64860354]
[1625484261918,1.73048176,34053.0,34044.0,5.20065798]
[1625484262000,1.78948176,34053.0,34044.0,5.20065798]
[1625484262101,1.78948176,34053.0,34039.0,1.3775755]
[1625484262198,1.78948176,34053.0,34040.0,1.0347]
[1625484262300,4.812,34044.0,34040.0,0.5135]
[1625484262461,5.03551,34044.0,34039.0,0.9323755]
[1625484262503,5.03551,34044.0,34036.0,1.54977244]
[1625484262504,5.09451,34044.0,34036.0,1.54977244]
[1625484262630,0.488,34037.0,34036.0,0.97026253]
[1625484262731,2.02761,34037.0,34020.0,5.59159904]
[1625484262829,0.059,34036.0,34020.0,5.03959904]
[1625484262929,2.7648,34021.0,34003.0,7.95796983]
[1625484263036,0.059,34020.0,34005.0,0.0871]
[1625484263107,0.059,34007.0,33997.0,0.96400042]
[1625484263245,0.34251,34007.0,33997.0,0.96400042]
[1625484263429,2.0684,33998.0,33997.0,0.90500042]
[1625484263434,2.40748,33998.0,33997.0,0.71444334]
[1625484263513,2.40748,33998.0,33997.0,0.61444334]
[1625484263600,2.40748,33998.0,33987.0,1.71785774]
[1625484263709,4.7034,33988.0,33987.0,1.71785774]
[1625484263800,5.03111,33988.0,33987.0,1.71785774]
[1625484265216,5.99341176,33988.0,33974.0,1.20332719]
[1625484265220,6.49341176,33988.0,33974.0,1.20332719]
[1625484265224,6.13991176,33988.0,33974.0,1.20332719]
[1625484265230,0.8652,33975.0,33969.0,1.54713496]
[1625484265234,1.3777,33975.0,33969.0,1.54713496]
[1625484265249,1.3777,33975.0,33972.0,0.6737]
[1625484265253,0.03,33974.0,33969.0,1.54713496]
[1625484265257,0.03,33974.0,33969.0,1.39893496]
[1625484265266,0.03,33974.0,33969.0,0.05453496]
[1625484265273,0.059,33972.0,33966.0,0.11619039]
[1625484265287,0.059,33972.0,33959.0,1.60679206]
[1625484265322,0.53,33974.0,33959.0,1.49519206]
[1625484265402,0.059,33966.0,33959.0,1.40159206]
[1625484265501,0.37802,33966.0,33959.0,0.95569206]
[1625484265603,0.2348,33960.0,33952.0,1.59345439]
[1625484265712,0.8652,33957.0,33945.0,2.70111655]
[1625484265803,0.96230176,33946.0,33945.0,2.48091655]
[1625484265904,1.70170176,33946.0,33945.0,2.19251655]